fUST/lending_fUST_20250227
["ID","MTS","AMOUNT","RATE_DAILY","PERIOD"]
[354691035,1740621044234,-500.0,0.00046575,120]
[354691036,1740621044244,-226.0266,0.00046575,30]
[354691037,1740621044253,-500.0,0.00046575,120]
[354691038,1740621044263,-1045.73,0.00046575,120]
[354691039,1740621044272,-638.14,0.00046575,120]
[354691040,1740621044400,-151.0,0.00046575,120]
[354691041,1740621044410,-500.0,0.00046575,120]
[354691042,1740621044420,-500.0,0.00046575,120]
[354691043,1740621044431,-151.0,0.00046575,120]
[354691044,1740621044439,-151.0,0.00046575,120]
[354691045,1740621044448,-151.0,0.00046575,120]
[354691046,1740621044458,-500.4752199,0.00046575,120]
[354691047,1740621044469,-500.0,0.00046575,120]
[354691048,1740621044478,-500.0,0.00046575,45]
[354691049,1740621044488,-500.0,0.00046575,120]
[354691050,1740621044497,-503.19244002,0.00046575,120]
[354691051,1740621044507,-501.52744684,0.00046575,120]
[354691052,1740621044518,-502.65750822,0.00046575,120]
[354691053,1740621044527,-504.38858357,0.00046575,120]
[354691054,1740621044536,-500.0,0.00046575,120]
[354691055,1740621044545,-500.0,0.00046575,120]
[354691056,1740621044555,-500.0,0.00046575,120]
[354691057,1740621044564,-500.0,0.00046575,120]
[354691058,1740621044573,-500.0,0.00046575,120]
[354691059,1740621044582,-501.72769702,0.00046575,120]
[354691060,1740621044592,-503.60527171,0.00046575,120]
[354691061,1740621044602,-500.0,0.00046575,120]
[354691062,1740621044612,-640.2,0.00046575,120]
[354691063,1740621044621,-505.68669501,0.00046575,120]
[354691064,1740621044631,-614.74,0.00046575,120]
[354691065,1740621044642,-500.0,0.00046575,120]
[354691066,1740621044651,-500.59105248,0.00046575,120]
[354691067,1740621044660,-502.26402843,0.00046575,120]
[354691068,1740621044670,-500.80156479,0.00046575,120]
[354691069,1740621044679,-9100.55,0.00046575,120]
[354691070,1740621044688,-503.07340477,0.00046575,120]
[354691071,1740621044698,-501.7163052,0.00046575,120]
[354691072,1740621044709,-480.05171111,0.00046575,120]
[354691073,1740621044718,-502.33,0.00046575,120]
[354691074,1740621044728,-151.0,0.00046575,120]
[354691075,1740621044737,-151.0,0.00046575,120]
[354691076,1740621044746,-151.0,0.00046575,120]
[354691077,1740621044755,-503.09368921,0.00046575,120]
[354691078,1740621044764,-151.0,0.00046575,120]
[354691079,1740621044774,-256.21901855,0.00046575,120]
[354691080,1740621044783,-500.0,0.00046575,120]
[354691081,1740621044792,-501.72009226,0.00046575,120]
[354691082,1740621044801,-151.0,0.00046575,120]
[354691083,1740621044810,-151.0,0.00046575,120]
[354691084,1740621044819,-35526.73,0.00046575,120]
[354691085,1740621044828,-2154.88,0.00046575,120]
[354691086,1740621044838,-151.0,0.00046575,120]
[354691087,1740621044847,-523.0,0.00046575,120]
[354691088,1740621044857,-151.0,0.00046575,120]
[354691089,1740621044866,-151.0,0.00046575,120]
[354691090,1740621044875,-151.0,0.00046575,120]
[354691091,1740621044884,-500.73078424,0.00046575,120]
[354691092,1740621044893,-151.0,0.00046575,120]
[354691093,1740621044902,-500.0,0.00046575,120]
[354691094,1740621044912,-14442.73,0.00046575,120]
[354691095,1740621044921,-151.0,0.00046575,120]
[354691096,1740621044931,-500.0,0.00046575,120]
[354691097,1740621044940,-2523.54,0.00046575,120]
[354691098,1740621044951,-500.60943812,0.00046575,120]
[354691099,1740621044962,-500.0,0.00046575,120]
[354691100,1740621044971,-634.6,0.00046575,120]
[354691101,1740621044981,-500.0,0.00046575,120]
[354691102,1740621044990,-1118.09,0.00046575,120]
[354691103,1740621044999,-529.02,0.00046575,120]
[354691104,1740621045009,-501.64823816,0.00046575,120]
[354691105,1740621045019,-1012.68803248,0.00046575,20]
[354691106,1740621045028,-3617.17,0.00046575,120]
[354691107,1740621045038,-500.0,0.00046575,120]
[354691108,1740621045048,-500.0,0.00046575,120]
[354691109,1740621045058,-500.0,0.00046575,120]
[354691110,1740621045067,-500.96518281,0.00046575,120]
[354691111,1740621045076,-502.73122822,0.00046575,120]
[354691112,1740621045086,-480.937455,0.00046575,120]
[354691113,1740621045095,-480.937455,0.00046575,120]
[354691114,1740621045104,-480.937455,0.00046575,120]
[354691115,1740621045113,-480.937455,0.00046575,120]
[354691116,1740621045123,-501.65123605,0.00046575,120]
[354691117,1740621045131,-501.19862947,0.00046575,120]
[354691118,1740621045141,-500.0,0.00046575,120]
[354691119,1740621045150,-678.01,0.00046575,120]
[354691120,1740621045159,-189.8412356,0.00046575,120]
[354691121,1740621045168,-502.37369095,0.00046575,120]
[354691122,1740621045177,-500.0,0.00046575,120]
[354691123,1740621045186,-6653.08,0.00046575,120]
[354691124,1740621045204,-480.937455,0.00046575,120]
[354691125,1740621045217,-480.937455,0.00046575,120]
[354691126,1740621045227,-480.937455,0.00046575,120]
[354691127,1740621045236,-500.0,0.00046575,120]
[354691128,1740621045246,-480.937455,0.00046575,120]
[354691129,1740621045256,-500.82473361,0.00046575,120]
[354691130,1740621045265,-9236.29,0.00046575,120]
[354691131,1740621045275,-502.94861445,0.00046575,120]
[354691132,1740621045284,-1128.41,0.00046575,120]
[354691133,1740621045293,-500.0,0.00046575,120]
[354691134,1740621045303,-500.0,0.00046575,120]
[354691135,1740621045313,-502.44257309,0.00046575,120]
[354691136,1740621045323,-500.0,0.00046575,120]
[354691137,1740621045333,-500.0,0.00046575,120]
[354691138,1740621045343,-575.04,0.00046575,120]
[354691139,1740621045352,-501.59475957,0.00046575,120]
[354691140,1740621045362,-500.0,0.00046575,120]
[354691141,1740621045372,-500.0,0.00046575,120]
[354691142,1740621045382,-200.0,0.00046575,7]
[354691143,1740621045392,-823.27,0.00046575,120]
[354691144,1740621045402,-500.0,0.00046575,120]
[354691145,1740621045411,-500.97547144,0.00046575,120]
[354691146,1740621045422,-500.0,0.00046575,120]
[354691147,1740621045435,-500.0,0.00046575,120]
[354691148,1740621045445,-500.0,0.00046575,120]
[354691149,1740621045455,-599.05,0.00046575,120]
[354691150,1740621045467,-602.77,0.00046575,120]
[354691151,1740621045477,-500.0,0.00046575,30]
[354691152,1740621045488,-3455.45,0.00046575,120]
[354691153,1740621045499,-500.0,0.00046575,120]
[354691154,1740621045512,-586.04,0.00046575,120]
[354691155,1740621045524,-500.0,0.00046575,120]
[354691156,1740621045535,-502.79371474,0.00046575,120]
[354691157,1740621045546,-502.77745507,0.00046575,120]
[354691158,1740621045555,-500.0,0.00046575,120]
[354691159,1740621045566,-1295.84,0.00046575,120]
[354691160,1740621045576,-502.2766923,0.00046575,120]
[354691161,1740621045586,-500.0,0.00046575,120]
[354691162,1740621045597,-500.0,0.00046575,120]
[354691163,1740621045607,-500.0,0.00046575,120]
[354691164,1740621045617,-500.0,0.00046575,120]
[354691165,1740621045627,-505.67204612,0.00046575,120]
[354691166,1740621045636,-500.0,0.00046575,120]
[354691167,1740621045646,-501.72290074,0.00046575,120]
[354691168,1740621045656,-1250.93,0.00046575,120]
[354691169,1740621045666,-819.64095,0.00046575,120]
[354691170,1740621045675,-819.64095,0.00046575,120]
[354691171,1740621045685,-819.64095,0.00046575,120]
[354691173,1740621045694,-500.0,0.00046575,120]
[354691174,1740621045705,-819.64095,0.00046575,120]
[354691175,1740621045716,-585.49406715,0.00046575,120]
[354691176,1740621045726,-819.64095,0.00046575,120]
[354691177,1740621045736,-819.64095,0.00046575,120]
[354691178,1740621045746,-2239.39,0.00046575,120]
[354691179,1740621045755,-819.64095,0.00046575,120]
[354691180,1740621045765,-4509.79,0.00046575,120]
[354691181,1740621045774,-819.64095,0.00046575,120]
[354691182,1740621045784,-500.0,0.00046575,120]
[354691183,1740621045793,-500.0,0.00046575,120]
[354691184,1740621045803,-500.0,0.00046575,120]
[354691185,1740621045812,-500.0,0.00046575,120]
[354691186,1740621045822,-500.0,0.00046575,120]
[354691187,1740621045831,-579.04030848,0.00046575,120]
[354691188,1740621045840,-1199.64,0.00046575,120]
[354691189,1740621045850,-151.0,0.00046575,120]
[354691190,1740621045859,-154.069187,0.00046575,120]
[354691191,1740621045869,-533.33472902,0.00046575,120]
[354691192,1740621045878,-151.0,0.00046575,120]
[354691193,1740621045888,-797.65,0.00046575,120]
[354691194,1740621045898,-152.27565,0.00046575,120]
[354691196,1740621045908,-502.81645308,0.00046575,120]
[354691198,1740621045917,-10948.58,0.00046575,3]
[354691199,1740621045927,-500.0,0.00046575,120]
[354691201,1740621045937,-500.0,0.00046575,120]
[354691202,1740621045947,-500.0,0.00046575,120]
[354691203,1740621045956,-1382.01,0.00046575,120]
[354691204,1740621045965,-2082.25,0.00046575,120]
[354691205,1740621045975,-500.0,0.00046575,120]
[354691206,1740621045985,-500.95254587,0.00046575,120]
[354691207,1740621045994,-500.0,0.00046575,120]
[354691208,1740621046003,-502.98826693,0.00046575,120]
[354691209,1740621046013,-500.0,0.00046575,120]
[354691210,1740621046022,-500.0,0.00046575,120]
[354691211,1740621046031,-500.0,0.00046575,120]
[354691212,1740621046041,-501.5350715,0.00046575,120]
[354691214,1740621046050,-139382.26,0.00046575,7]
[354691215,1740621046059,-500.0,0.00046575,120]
[354691217,1740621046069,-523.69,0.00046575,120]
[354691219,1740621046079,-501.77434034,0.00046575,120]
[354691221,1740621046088,-500.0,0.00046575,120]
[354691222,1740621046097,-502.35872394,0.00046575,120]
[354691223,1740621046106,-500.0,0.00046575,120]
[354691224,1740621046115,-1262.6,0.00046575,120]
[354691225,1740621046125,-1362.94,0.00046575,120]
[354691227,1740621046134,-500.0,0.00046575,120]
[354691229,1740621046144,-3104.09,0.00046575,120]
[354691231,1740621046153,-657.25,0.00046575,30]
[354691233,1740621046162,-6018.91,0.00046575,120]
[354691234,1740621046171,-500.0,0.00046575,120]
[354691236,1740621046181,-500.0,0.00046575,120]
[354691238,1740621046190,-500.0,0.00046575,120]
[354691240,1740621046200,-500.0,0.00046575,120]
[354691242,1740621046210,-500.0,0.00046575,120]
[354691244,1740621046219,-500.0,0.00046575,120]
[354691246,1740621046228,-500.0,0.00046575,120]
[354691248,1740621046238,-2387.02,0.00046575,120]
[354691249,1740621046247,-2477.16,0.00046575,120]
[354691252,1740621046257,-500.0,0.00046575,120]
[354691253,1740621046267,-501.17999735,0.00046575,120]
[354691255,1740621046276,-1000.0,0.00046575,2]
[354691257,1740621046285,-500.0,0.00046575,120]
[354691259,1740621046294,-538.19,0.00046575,120]
[354691261,1740621046304,-939.62,0.00046575,120]
[354691263,1740621046314,-750.87,0.00046575,120]
[354691265,1740621046323,-500.0,0.00046575,120]
[354691267,1740621046332,-500.0,0.00046575,120]
[354691269,1740621046342,-500.0,0.00046575,120]
[354691271,1740621046351,-500.0,0.00046575,120]
[354691273,1740621046360,-500.0,0.00046575,120]
[354691274,1740621046370,-1913.21,0.00046575,120]
[354691276,1740621046379,-501.67190229,0.00046575,120]
[354691278,1740621046389,-501.2312366,0.00046575,120]
[354691280,1740621046398,-500.0,0.00046575,120]
[354691282,1740621046408,-1371.43,0.00046575,120]
[354691284,1740621046418,-1452.97,0.00046575,120]
[354691286,1740621046432,-500.0,0.00046575,120]
[354691288,1740621046442,-500.0,0.00046575,120]
[354691290,1740621046451,-500.0,0.00046575,120]
[354691292,1740621046464,-500.0,0.00046575,120]
[354691294,1740621046474,-151.0,0.00046575,120]
[354691296,1740621046484,-151.0,0.00046575,120]
[354691311,1740621046635,-151.0,0.00046575,120]
[354691313,1740621046645,-155.121521,0.00046575,120]
[354691315,1740621046655,-151.0,0.00046575,120]
[354691317,1740621046665,-500.0,0.00046575,120]
[354691319,1740621046676,-500.0,0.00046575,120]
[354691321,1740621046685,-502.69755292,0.00046575,120]
[354691323,1740621046695,-151.0,0.00046575,120]
[354691325,1740621046704,-151.0,0.00046575,120]
[354691327,1740621046718,-151.0,0.00046575,120]
[354691328,1740621046728,-151.0,0.00046575,120]
[354691330,1740621046737,-151.0,0.00046575,120]
[354691332,1740621046747,-151.0,0.00046575,120]
[354691334,1740621046757,-500.0,0.00046575,120]
[354691336,1740621046769,-506.32252388,0.00046575,120]
[354691338,1740621046778,-500.0,0.00046575,120]
[354691340,1740621046788,-151.0,0.00046575,120]
[354691342,1740621046798,-151.0,0.00046575,120]
[354691344,1740621046806,-500.0,0.00046575,120]
[354691346,1740621046815,-500.0,0.00046575,120]
[354691347,1740621046823,-500.0,0.00046575,120]
[354691349,1740621046832,-151.0,0.00046575,120]
[354691351,1740621046841,-151.0,0.00046575,120]
[354691353,1740621046852,-500.0,0.00046575,120]
[354691355,1740621046862,-151.0,0.00046575,120]
[354691357,1740621046871,-508.180157,0.00046575,30]
[354691359,1740621046880,-265.552145,0.00046575,120]
[354691361,1740621046891,-735.65,0.00046575,120]
[354691363,1740621046900,-500.0,0.00046575,120]
[354691364,1740621046909,-500.0,0.00046575,120]
[354691366,1740621046919,-500.0,0.00046575,120]
[354691368,1740621046928,-500.0,0.00046575,120]
[354691370,1740621046937,-248.3142622,0.00046575,120]
[354691372,1740621046947,-349.71535672,0.00046575,120]
[354691373,1740621046956,-500.0,0.00046575,120]
[354691374,1740621046970,-7655.41,0.00046575,120]
[354691375,1740621046979,-1417.92,0.00046575,120]
[354691376,1740621046988,-1791.73,0.00046575,120]
[354691377,1740621046998,-1084.68,0.00046575,120]
[354691378,1740621047008,-1303.54,0.00046575,120]
[354691379,1740621047017,-717.07,0.00046575,120]
[354691380,1740621047027,-508.7807754,0.00046575,120]
[354691381,1740621047036,-500.84187753,0.00046575,120]
[354691382,1740621047046,-502.74138315,0.00046575,120]
[354691383,1740621047055,-744.63,0.00046575,120]
[354691384,1740621047064,-500.0,0.00046575,120]
[354691385,1740621047073,-744.63,0.00046575,120]
[354691386,1740621047082,-744.63,0.00046575,120]
[354691387,1740621047091,-744.63,0.00046575,120]
[354691388,1740621047101,-500.70129328,0.00046575,120]
[354691389,1740621047110,-744.63,0.00046575,120]
[354691390,1740621047119,-744.63,0.00046575,120]
[354691391,1740621047128,-744.63,0.00046575,120]
[354691392,1740621047137,-744.63,0.00046575,120]
[354691393,1740621047146,-744.63,0.00046575,120]
[354691394,1740621047156,-744.63,0.00046575,120]
[354691395,1740621047165,-500.0,0.00046575,120]
[354691396,1740621047175,-273.75685617,0.00046575,120]
[354691397,1740621047184,-744.63,0.00046575,120]
[354691398,1740621047193,-744.63,0.00046575,120]
[354691399,1740621047202,-500.0,0.00046575,120]
[354691400,1740621047215,-744.63,0.00046575,120]
[354691401,1740621047225,-744.63,0.00046575,120]
[354691402,1740621047235,-744.63,0.00046575,120]
[354691403,1740621047245,-4671.65,0.00046575,120]
[354691404,1740621047255,-744.63,0.00046575,120]
[354691405,1740621047264,-744.63,0.00046575,120]
[354691406,1740621047274,-744.63,0.00046575,120]
[354691407,1740621047283,-744.63,0.00046575,120]
[354691408,1740621047292,-744.63,0.00046575,120]
[354691409,1740621047302,-744.63,0.00046575,120]
[354691410,1740621047311,-744.63,0.00046575,120]
[354691411,1740621047320,-744.63,0.00046575,120]
[354691412,1740621047329,-744.81,0.00046575,120]
[354691413,1740621047339,-357.417152,0.00046575,120]
[354691414,1740621047348,-1504.85,0.00046575,120]
[354691415,1740621047358,-357.417152,0.00046575,120]
[354691416,1740621047367,-357.417152,0.00046575,120]
[354691417,1740621047377,-500.73916373,0.00046575,120]
[354691418,1740621047386,-357.417152,0.00046575,120]
[354691419,1740621047396,-885.41,0.00046575,120]
[354691420,1740621047405,-1476.4,0.00046575,120]
[354691421,1740621047415,-500.0,0.00046575,120]
[354691422,1740621047425,-357.417152,0.00046575,120]
[354691423,1740621047439,-357.417152,0.00046575,120]
[354691424,1740621047448,-500.0,0.00046575,28]
[354691425,1740621047459,-357.417152,0.00046575,120]
[354691426,1740621047470,-357.417152,0.00046575,120]
[354691427,1740621047480,-2406.49,0.00046575,120]
[354691428,1740621047490,-500.0,0.00046575,120]
[354691429,1740621047499,-502.24758391,0.00046575,120]
[354691430,1740621047508,-501.16166898,0.00046575,120]
[354691431,1740621047518,-839.92,0.00046575,120]
[354691432,1740621047527,-501.38845302,0.00046575,120]
[354691433,1740621047537,-500.0,0.00046575,120]
[354691434,1740621047546,-151.0,0.00046575,120]
[354691435,1740621047555,-151.0,0.00046575,120]
[354691436,1740621047565,-503.2108139,0.00046575,120]
[354691437,1740621047574,-151.0,0.00046575,120]
[354691438,1740621047583,-151.941241,0.00046575,120]
[354691439,1740621047593,-500.0,0.00046575,120]
[354691440,1740621047605,-500.0,0.00046575,120]
[354691441,1740621047623,-500.0,0.00046575,120]
[354691442,1740621047639,-500.0,0.00046575,120]
[354691443,1740621047655,-500.0,0.00046575,120]
[354691444,1740621047671,-500.0,0.00046575,120]
[354691445,1740621047687,-500.0,0.00046575,120]
[354691446,1740621047705,-501.75056329,0.00046575,120]
[354691447,1740621047722,-500.0,0.00046575,120]
[354691448,1740621047736,-500.0,0.00046575,120]
[354691449,1740621047754,-500.0,0.00046575,120]
[354691450,1740621047768,-500.0,0.00046575,120]
[354691451,1740621047780,-500.0,0.00046575,120]
[354691452,1740621047794,-500.0,0.00046575,21]
[354691453,1740621047810,-500.0,0.00046575,120]
[354691454,1740621047825,-500.0,0.00046575,120]
[354691455,1740621047842,-500.0,0.00046575,120]
[354691456,1740621047855,-733.72,0.00046575,120]
[354691457,1740621047868,-1780.07,0.00046575,120]
[354691458,1740621047885,-500.0,0.00046575,120]
[354691459,1740621047899,-3239.84,0.00046575,120]
[354691460,1740621047912,-151.0,0.00046575,120]
[354691461,1740621047927,-151.0,0.00046575,120]
[354691462,1740621047939,-151.0,0.00046575,120]
[354691463,1740621047951,-500.0,0.00046575,120]
[354691464,1740621047966,-500.0,0.00046575,120]
[354691465,1740621047979,-8076.25,0.00046575,120]
[354691466,1740621047993,-500.0,0.00046575,120]
[354691467,1740621048006,-500.0,0.00046575,120]
[354691468,1740621048019,-500.0,0.00046575,120]
[354691469,1740621048032,-635.51,0.00046575,120]
[354691470,1740621048045,-154.80639,0.00046575,120]
[354691471,1740621048058,-649.98,0.00046575,120]
[354691472,1740621048070,-500.65307513,0.00046575,120]
[354691473,1740621048083,-2737.88,0.00046575,120]
[354691474,1740621048095,-501.94522108,0.00046575,120]
[354691475,1740621048108,-1183.42,0.00046575,120]
[354691476,1740621048120,-500.0,0.00046575,120]
[354691477,1740621048132,-2270.38,0.00046575,120]
[354691478,1740621048145,-500.0,0.00046575,120]
[354691479,1740621048160,-500.86606789,0.00046575,120]
[354691480,1740621048173,-500.0,0.00046575,120]
[354691481,1740621048185,-500.0,0.00046575,120]
[354691482,1740621048198,-502.57959051,0.00046575,120]
[354691483,1740621048211,-500.0,0.00046575,120]
[354691484,1740621048224,-500.0,0.00046575,120]
[354691485,1740621048237,-732.48,0.00046575,120]
[354691486,1740621048250,-796.97,0.00046575,120]
[354691487,1740621048263,-1673.37,0.00046575,120]
[354691488,1740621048276,-880.14,0.00046575,120]
[354691489,1740621048288,-502.22840812,0.00046575,120]
[354691490,1740621048301,-500.0,0.00046575,120]
[354691491,1740621048313,-500.0,0.00046575,120]
[354691492,1740621048326,-500.0,0.00046575,120]
[354691493,1740621048339,-502.80370852,0.00046575,120]
[354691494,1740621048352,-500.0,0.00046575,120]
[354691495,1740621048365,-500.0,0.00046575,120]
[354691496,1740621048378,-500.0,0.00046575,120]
[354691497,1740621048391,-10636.74,0.00046575,120]
[354691498,1740621048404,-10636.74,0.00046575,120]
[354691499,1740621048417,-10636.74,0.00046575,120]
[354691500,1740621048431,-10636.74,0.00046575,120]
[354691501,1740621048445,-10636.74,0.00046575,120]
[354691502,1740621048458,-10636.74,0.00046575,120]
[354691503,1740621048472,-10636.74,0.00046575,120]
[354691504,1740621048485,-10636.74,0.00046575,120]
[354691505,1740621048497,-500.0,0.00046575,120]
[354691506,1740621048512,-500.0,0.00046575,120]
[354691507,1740621048525,-500.0,0.00046575,120]
[354691508,1740621048537,-10636.74,0.00046575,120]
[354691509,1740621048551,-10636.74,0.00046575,120]
[354691510,1740621048564,-10636.74,0.00046575,120]
[354691511,1740621048577,-10636.74,0.00046575,120]
[354691512,1740621048590,-500.0,0.00046575,120]
[354691513,1740621048604,-10636.74,0.00046575,120]
[354691514,1740621048617,-10636.74,0.00046575,120]
[354691515,1740621048629,-10636.74,0.00046575,120]
[354691516,1740621048642,-10636.74,0.00046575,120]
[354691517,1740621048656,-10636.74,0.00046575,120]
[354691518,1740621048668,-10636.74,0.00046575,120]
[354691519,1740621048681,-10636.74,0.00046575,120]
[354691520,1740621048694,-501.88593301,0.00046575,120]
[354691521,1740621048707,-10636.74,0.00046575,120]
[354691522,1740621048722,-10636.74,0.00046575,120]
[354691523,1740621048736,-10636.74,0.00046575,120]
[354691524,1740621048749,-10636.74,0.00046575,120]
[354691525,1740621048764,-10636.92657518,0.00046575,120]
[354691526,1740621048777,-501.65380182,0.00046575,120]
[354691527,1740621048790,-500.0,0.00046575,120]
[354691528,1740621048804,-500.0,0.00046575,120]
[354691529,1740621048816,-500.0,0.00046575,120]
[354691530,1740621048825,-500.0,0.00046575,120]
[354691531,1740621048835,-36249.96,0.00046575,6]
[354691532,1740621048844,-500.0,0.00046575,120]
[354691533,1740621048855,-542.05,0.00046575,120]
[354691534,1740621048864,-588.80184453,0.00046575,120]
[354691535,1740621048874,-707.11,0.00046575,120]
[354691536,1740621048884,-500.0,0.00046575,120]
[354691537,1740621048893,-500.0,0.00046575,120]
[354691538,1740621049141,-801.84,0.00046575,120]
[354691539,1740621049152,-502.01420231,0.00046575,2]
[354691540,1740621049162,-500.49562871,0.00046575,120]
[354691541,1740621049171,-1992.65,0.00046575,120]
[354691542,1740621049181,-500.0,0.00046575,120]
[354691543,1740621049190,-891.68,0.00046575,120]
[354691544,1740621049199,-500.0,0.00046575,2]
[354691545,1740621049210,-503.14657004,0.00046575,120]
[354691546,1740621049223,-889.29,0.00046575,120]
[354691547,1740621049232,-500.0,0.00046575,120]
[354691548,1740621049242,-500.0,0.00046575,120]
[354691549,1740621049251,-500.0,0.00046575,120]
[354691550,1740621049260,-501.62729834,0.00046575,120]
[354691551,1740621049270,-500.0,0.00046575,120]
[354691552,1740621049280,-576.67,0.00046575,120]
[354691553,1740621049290,-500.0,0.00046575,120]
[354691554,1740621049300,-6016.42,0.00046575,120]
[354691555,1740621049310,-500.0,0.00046575,120]
[354691556,1740621049320,-500.0,0.00046575,120]
[354691557,1740621049330,-2942.41,0.00046575,120]
[354691558,1740621049340,-151.0,0.0004658,120]
[354691559,1740621049350,-151.0,0.0004658,120]
[354691560,1740621049359,-151.0,0.0004658,120]
[354691561,1740621049369,-151.0,0.0004658,120]
[354691562,1740621049379,-151.0,0.0004658,120]
[354691563,1740621049389,-151.0,0.0004658,120]
[354691564,1740621049400,-745.66010182,0.0004658,120]
[354691565,1740621049409,-745.66010182,0.0004658,120]
[354691566,1740621049420,-745.66010182,0.0004658,120]
[354691567,1740621049433,-745.66010182,0.0004658,120]
[354691568,1740621049442,-745.66010182,0.0004658,120]
[354691569,1740621049451,-745.66010182,0.0004658,120]
[354691570,1740621049462,-745.66010182,0.0004658,120]
[354691571,1740621049474,-745.66010182,0.0004658,120]
[354691572,1740621049485,-745.66010182,0.0004658,120]
[354691573,1740621049494,-745.66010182,0.0004658,120]
[354691574,1740621049504,-745.66010182,0.0004658,120]
[354691575,1740621049515,-745.66010182,0.0004658,120]
[354691576,1740621049525,-745.66010182,0.0004658,120]
[354691577,1740621049534,-745.66010182,0.0004658,120]
[354691578,1740621049545,-745.66010182,0.0004658,120]
[354691579,1740621049555,-745.66010182,0.0004658,120]
[354691580,1740621049565,-745.66010182,0.0004658,120]
[354691581,1740621049574,-745.66010182,0.0004658,120]
[354691582,1740621049584,-745.66010182,0.0004658,120]
[354691583,1740621049593,-745.66,0.0004658,120]
[354691584,1740621049603,-1739.87357091,0.0004658,120]
[354691585,1740621049612,-1739.87357091,0.0004658,120]
[354691586,1740621049621,-1739.87357091,0.0004658,120]
[354691587,1740621049631,-1739.87357091,0.0004658,120]
[354691588,1740621049640,-1739.87357091,0.0004658,120]
[354691589,1740621049649,-1739.87357091,0.0004658,120]
[354691590,1740621049659,-1739.87357091,0.0004658,120]
[354691591,1740621049668,-1739.87357091,0.0004658,120]
[354691592,1740621049678,-1739.87357091,0.0004658,120]
[354691593,1740621049687,-1739.87357091,0.0004658,120]
[354691594,1740621049697,-1739.87357091,0.0004658,120]
[354691595,1740621049706,-1739.87357091,0.0004658,120]
[354691596,1740621049718,-1739.87357091,0.0004658,120]
[354691597,1740621049727,-1739.87357091,0.0004658,120]
[354691598,1740621049736,-1739.87357091,0.0004658,120]
[354691599,1740621049745,-1739.87357091,0.0004658,120]
[354691600,1740621049755,-1739.87357091,0.0004658,120]
[354691601,1740621049765,-1739.87357091,0.0004658,120]
[354691602,1740621049774,-1739.87357091,0.0004658,120]
[354691603,1740621049784,-1739.87,0.0004658,120]
[354691604,1740621049793,-429.14677085,0.0004658,120]
[354691605,1740621049802,-429.14677085,0.0004658,120]
[354691606,1740621049811,-429.14677085,0.0004658,120]
[354691607,1740621049820,-429.14677085,0.0004658,120]
[354691608,1740621049830,-429.14677085,0.0004658,120]
[354691609,1740621049839,-429.14677085,0.0004658,120]
[354691610,1740621049849,-429.14677085,0.0004658,120]
[354691611,1740621049858,-429.14677085,0.0004658,120]
[354691612,1740621049867,-429.14677085,0.0004658,120]
[354691613,1740621049877,-429.14677085,0.0004658,120]
[354691614,1740621049886,-429.14677085,0.0004658,120]
[354691615,1740621049895,-429.14677085,0.0004658,120]
[354691616,1740621049905,-429.14677085,0.0004658,120]
[354691617,1740621049914,-429.14677085,0.0004658,120]
[354691618,1740621049924,-429.14677085,0.0004658,120]
[354691619,1740621049933,-429.14677085,0.0004658,120]